[Event "CCT Airthings Masters Play-In 2023"]
[Site "Online"]
[Date "2023.02.03"]
[Round "1"]
[White "GMSrinath"]
[Black "BillieKimbah"]
[Result "*"]
[ECO "D46"]
[WhiteElo "2865"]
[BlackElo "2566"]
[Annotator "TA"]
[PlyCount "42"]
[EventDate "2023.02.03"]
[EventType "swiss"]
[EventCountry "NET"]
[SourceTitle "playchess.com"]
[Source "ChessBase"]
[SourceQuality "1"]
[TimeControl "600+2"]

{[%evp 21,42,0,25,13,30,-40,-37,-45,-33,-35,-45,-33,-17,-68,-85,-115,-75,-96,-42,-108,-92,-102,-101]} 1. Nf3 {[%emt 0:00:04]} d5 {[%emt 0:00:05]} 2. e3 {[%emt 0:00:05]} Nf6 {[%emt 0:00:02]} 3. c4 {[%emt 0:00:02]} c6 {[%emt 0:00:08]} 4. Nc3 {[%emt 0:00:03]} Nbd7 {[%emt 0:00:01]} 5. d4 {[%emt 0:00:02]} e6 {[%emt 0:00:03]} 6. Bd3 {[%emt 0:00:03]} dxc4 {[%emt 0:00:10]} 7. Bxc4 {[%emt 0:00:00]} b5 {[%emt 0:00:02]} 8. Bd3 {[%emt 0:00:01]} Bd6 {[%emt 0:00:03]} 9. Qc2 {[%emt 0:00:19]} O-O {[%emt 0:00:07]} 10. O-O {[%emt 0:00:02]} Bb7 {[%emt 0:00:05]} 11. a3 {[%emt 0:00:11]} a5 {[%emt 0:00:06] 11...Rc8 injects fresh life into this line.} 12. e4 {[%emt 0:00:42] [#] Black must now prevent e5. D46: Semi-Slav: 5 e3 Nbd7 6 Bd3, Black avoids the Meran.} e5 {[%emt 0:00:02]} 13. Ne2 {[%emt 0:00:12]} (13. Nxe5 $11 Nxe5 14. dxe5 Bxe5 15. h3) 13... c5 $15 {[%emt 0:00:22] Strongly threatening ...c4.} 14. dxe5 {[%emt 0:00:17] Black is slightly better.} Nxe5 {[%emt 0:00:01]} 15. Nxe5 {[%emt 0:00:09]} Bxe5 {[%emt 0:00:00]} 16. Bxb5 {[%emt 0:00:03]} Bxe4 {[%emt 0:00:23] [#]} 17. Qxc5 $146 {[%emt 0:00:02]} (17. Qc4 $1 $11) ({Predecessor:} 17. Qa4 Qc7 18. Bg5 Rab8 19. f4 Bxb2 20. Ra2 Rxb5 21. Qxb5 Rb8 22. Qxb2 Rxb2 23. Rxb2 {0-1 Slugin,S (2439)-Kargin,A (2392) Lipetsk King's Gambit-A 2010 (4)}) 17... Qb8 $36 {[%emt 0:00:04][%mdl 2048] Black is really pushing.} 18. a4 {[%emt 0:00:59]} Bxh2+ {[%emt 0:00:32]} 19. Kh1 {[%emt 0:00:02]} Bd6 {[%emt 0:00:30]} ({Better is} 19... Rc8 $17 20. Qg5 h6) 20. Qc3 {[%emt 0:00:38]} (20. Qg5 $1 $15) 20... Rc8 $17 {[%emt 0:00:11]} 21. Qh3 {[%emt 0:00:02] [#]} Rc5 $1 {[%emt 0:00:07] Prevents Bg5.   Weighted Error Value: White=0.26 (precise) /Black=0.17 (very precise)} *

[Event "CCT Airthings Masters Play-In 2023"]
[Site "Online"]
[Date "2023.02.03"]
[Round "1"]
[White "PSvidler"]
[Black "daro94"]
[Result "*"]
[ECO "C91"]
[WhiteElo "2800"]
[BlackElo "2562"]
[Annotator "NA"]
[PlyCount "33"]
[EventDate "2023.02.03"]
[EventType "swiss"]
[EventCountry "NET"]
[SourceTitle "playchess.com"]
[Source "ChessBase"]
[SourceQuality "1"]
[TimeControl "600+2"]

1. e4 {[%emt 0:00:13]} e5 {[%emt 0:00:08]} 2. Nf3 {[%emt 0:00:08]} Nc6 {[%emt 0:00:00]} 3. Bb5 {[%emt 0:00:02]} Nf6 {[%emt 0:00:08]} 4. d3 {[%emt 0:00:08]} d6 {[%emt 0:00:04]} 5. O-O {[%emt 0:00:47]} Be7 {[%emt 0:00:05]} 6. c3 {[%emt 0:00:15]} O-O {[%emt 0:00:01]} 7. Re1 {[%emt 0:00:11]} a6 {[%emt 0:00:18]} 8. Ba4 {[%emt 0:00:02]} Re8 {[%emt 0:00:09]} 9. Nbd2 {[%emt 0:00:11]} Bf8 {[%emt 0:00:12]} 10. d4 {[%emt 0:00:24]} b5 {[%emt 0:00:03]} 11. Bc2 {[%emt 0:00:01]} Bb7 {[%emt 0:00:39]} 12. d5 {[%emt 0:00:27]} Nb8 {[%emt 0:00:05]} 13. b3 {[%emt 0:00:02]} c6 {[%emt 0:00:03]} 14. c4 {[%emt 0:00:01]} Nbd7 {[%emt 0:00:00]} 15. Nf1 {[%emt 0:00:22]} a5 {[%emt 0:00:14]} 16. Be3 {[%emt 0:00:45]} Qb8 {[%emt 0:00:28]} 17. N3d2 {[%emt 0:00:55]} *

[Event "CCT Airthings Masters Play-In 2023"]
[Site "Online"]
[Date "2023.02.03"]
[Round "1"]
[White "Nepomniachtchi, Ian"]
[Black "Fandorine"]
[Result "*"]
[ECO "E94"]
[WhiteElo "2793"]
[BlackElo "2561"]
[Annotator "TA"]
[PlyCount "43"]
[EventDate "2023.02.03"]
[EventType "swiss"]
[EventCountry "NET"]
[SourceTitle "playchess.com"]
[Source "ChessBase"]
[SourceQuality "1"]
[TimeControl "600+2"]

{[%evp 19,43,51,102,103,95,89,97,102,83,102,95,93,104,106,107,53,62,63,58,64,60,60,61,60,75,45]} 1. d4 {[%emt 0:00:08]} Nf6 {[%emt 0:00:13]} 2. c4 {[%emt 0:00:01]} g6 {[%emt 0:00:01]} 3. Nc3 {[%emt 0:00:01]} Bg7 {[%emt 0:00:01]} 4. e4 {[%emt 0:00:02]} d6 {[%emt 0:00:01]} 5. Nf3 {[%emt 0:00:01]} O-O {[%emt 0:00:01]} 6. Be2 {[%emt 0:00:00]} e5 {[%emt 0:00:01]} 7. O-O {[%emt 0:00:00]} exd4 {[%emt 0:00:01]} 8. Nxd4 {[%emt 0:00:01]} Re8 {[%emt 0:00:00]} 9. f3 {[%emt 0:00:01]} c6 {[%emt 0:00:01]} 10. Kh1 {[%emt 0:00:11]} d5 {[%emt 0:00:01]} (10... Nfd7 $14) 11. cxd5 $16 {[%emt 0:00:04] E94: King's Indian: Classical: 6 Be2 e5 7 0-0: Various Black 7th moves.} cxd5 {[%emt 0:00:01]} 12. Bg5 {[%emt 0:00:01]} Nc6 {[%emt 0:00:01] [#]} 13. Bb5 $1 {[%emt 0:00:18] White is more active.} h6 {[%emt 0:00:01]} 14. Nxc6 {[%emt 0:00:14]} bxc6 {[%emt 0:00:01]} 15. Bxc6 {[%emt 0:00:00] Hoping for Bxf6.} hxg5 {[%emt 0:00:01]} 16. Bxa8 {[%emt 0:00:02] Black must now prevent Bc6.} d4 {[%emt 0:00:01] [#]} 17. Nd5 {[%emt 0:00:12]} (17. Ne2 $1 $16) 17... Ba6 $1 $14 {[%emt 0:00:02][%csl LRa8,LRf1][%cal Oa6f1]} 18. Nxf6+ {[%emt 0:00:14][%mdl 64] Remove Defender} Qxf6 {[%emt 0:00:26]} 19. Bd5 {[%emt 0:00:38][%cal Od1a4] Strongly threatening Qa4!} Bxf1 {[%emt 0:00:11]} 20. Qxf1 {[%emt 0:00:00]} Rc8 {[%emt 0:00:08] [#]} 21. Bc4 $146 {[%emt 0:01:11]} ({Predecessor:} 21. Qd3 Qf4 22. g3 Qe3 23. Qxe3 dxe3 24. Re1 Bd4 25. Re2 Rc1+ 26. Kg2 Rb1 27. b3 {1-0 Sorokin,A (2521)-Leitao,R (2592) Titled Tuesday intern op 25th May blitz 2021 (5)}) 21... Qf4 {[%emt 0:00:49]} 22. Rd1 {[%emt 0:00:07] Weighted Error Value: White=0.07 (flawless) /Black=0.06 (flawless)} *

[Event "CCT Airthings Masters Play-In 2023"]
[Site "Online"]
[Date "2023.02.03"]
[Round "1"]
[White "Firouzja, Alireza"]
[Black "VincentKeymer"]
[Result "*"]
[ECO "E48"]
[WhiteElo "2785"]
[BlackElo "2636"]
[Annotator "TA"]
[PlyCount "35"]
[EventDate "2023.02.03"]
[EventType "swiss"]
[EventCountry "NET"]
[SourceTitle "playchess.com"]
[Source "ChessBase"]
[SourceQuality "1"]
[TimeControl "600+2"]

{[%evp 21,35,11,13,-12,0,0,0,-31,-37,-66,-34,-93,-72,-78,-73,-66]} 1. d4 {[%emt 0:00:10] ChessBase II} Nf6 {[%emt 0:00:06]} 2. c4 {[%emt 0:00:04]} e6 {[%emt 0:00:01]} 3. Nc3 {[%emt 0:00:07]} Bb4 {[%emt 0:00:01]} 4. e3 {[%emt 0:00:06]} c5 {[%emt 0:00:02]} 5. Bd3 {[%emt 0:00:13]} Nc6 {[%emt 0:00:03]} 6. Nge2 {[%emt 0:00:02]} cxd4 {[%emt 0:00:02]} 7. exd4 {[%emt 0:00:01]} d5 {[%emt 0:00:00]} 8. cxd5 {[%emt 0:00:05]} Nxd5 {[%emt 0:00:00]} 9. O-O {[%emt 0:00:02]} O-O {[%emt 0:00:01]} 10. Bc2 {[%emt 0:00:14]} Be7 {[%emt 0:01:21] is currently scoring better than 10...Re8.} 11. Qd3 {[%emt 0:00:11]} g6 {[%emt 0:00:11]} 12. a3 {[%emt 0:00:02] Against Ndb4. E48: Nimzo-Indian: Rubinstein: 5 Bd3 d5 including 6 Ne2, but excluding 6 a3.} b6 {[%emt 0:00:07]} 13. Bh6 {[%emt 0:00:04]} Re8 {[%emt 0:00:01]} 14. Bb3 {[%emt 0:00:13] The position is equal.} Nxc3 {[%emt 0:00:11]} 15. bxc3 {[%emt 0:00:20]} Bb7 {[%emt 0:00:12] [#]} (15... Na5 $5 {[%cal Ra5b3]} 16. Bc2 Bd6 $15) 16. f4 $146 {[%emt 0:00:45]} ({White should play} 16. Ba4 $15) ({Predecessor:} 16. Rfd1 Na5 17. Ba4 Bc6 18. Bxc6 Nxc6 19. c4 Rc8 20. d5 exd5 21. cxd5 Ne5 22. Qh3 {0-1 Vaisman,V (2375)-Andruet,G (2390) Cap d'Agde op 04th 1985}) 16... Bf8 {[%emt 0:00:56]} 17. Bxf8 {[%emt 0:00:18]} Rxf8 {[%emt 0:00:00]} 18. Ng3 {[%emt 0:00:33] Black took control after the opening.   Weighted Error Value: White=0.28 (precise) /Black=0.12 (very precise)} *

[Event "CCT Airthings Masters Play-In 2023"]
[Site "Online"]
[Date "2023.02.03"]
[Round "1"]
[White "GukeshDommaraju"]
[Black "Sevian, Samuel"]
[Result "1-0"]
[ECO "D02"]
[WhiteElo "2785"]
[BlackElo "2687"]
[Annotator "TA"]
[PlyCount "95"]
[EventDate "2023.02.03"]
[EventType "swiss"]
[EventCountry "NET"]
[SourceTitle "playchess.com"]
[Source "ChessBase"]
[SourceQuality "1"]
[TimeControl "600+2"]

{[%evp 9,95,0,17,18,27,29,39,33,37,39,43,32,36,39,46,22,64,54,106,89,93,41,98,62,183,41,53,51,40,57,70,67,133,122,151,127,148,143,218,172,319,270,374,332,407,406,603,579,777,371,367,322,284,221,359,309,299,299,535,407,369,384,526,524,535,513,658,357,744,719,1049,1049,5143,4990,5059,5052,29982,29983,29983,29984,29990,29991,29991,29992,29992,29993,29997,29994]} 1. d4 {[%emt 0:00:03]} Nf6 {[%emt 0:00:04]} 2. Nf3 {[%emt 0:00:01]} d5 {[%emt 0:00:00]} 3. Bf4 {[%emt 0:00:01]} e6 {[%emt 0:00:01]} 4. e3 {[%emt 0:00:00]} c5 {[%emt 0:00:03]} 5. Nbd2 {[%emt 0:00:02]} cxd4 {[%emt 0:00:01]} 6. exd4 {[%emt 0:00:02] D02: 1 d4 d5 2 Nf3 sidelines, including 2...Nf6 3 g3 and 2...Nf6 3 Bf4.} Qb6 {[%emt 0:00:00] [#]} 7. Nb3 $146 {[%emt 0:00:12]} ({Predecessor:} 7. Bd3 Nc6 8. c3 Qxb2 9. Rc1 Qb6 10. Ne5 Nxe5 11. dxe5 Nd7 12. Nf3 Nc5 13. Bc2 {0-1 Omarsson,J (1185)-Ptacnikova,L (2173) Reykjavik Blitz op 2022 (3)}) 7... Bd7 {[%emt 0:00:03]} 8. a4 {[%emt 0:00:04][%cal Ba2a4,Ba4a5][%mdl 32] White is slightly better.} Nc6 {[%emt 0:01:07]} 9. a5 {[%emt 0:00:26]} Qd8 {[%emt 0:00:14]} 10. c3 {[%emt 0:00:05]} Nh5 {[%emt 0:00:16]} 11. Be3 {[%emt 0:00:42]} Bd6 {[%emt 0:00:03]} 12. Ne5 {[%emt 0:00:10]} g6 {[%emt 0:00:18]} 13. a6 {[%emt 0:00:12]} bxa6 {[%emt 0:03:12] [#]} (13... b6 $14) 14. Nxd7 $1 $16 {[%emt 0:00:41]} (14. Rxa6 Bxe5 15. dxe5 Nxe5 $11) 14... Qxd7 {[%emt 0:00:02]} 15. Rxa6 {[%emt 0:00:01]} (15. Nc5 $16 Bxc5 16. dxc5) 15... Rb8 {[%emt 0:00:05]} (15... O-O $14) 16. Be2 {[%emt 0:00:36]} (16. Nc5 {feels hotter.} Bxc5 17. dxc5 Rxb2 18. Qa4) 16... Ng7 {[%emt 0:00:20] [#]} (16... Qc8 $14) 17. O-O {[%emt 0:00:42]} (17. Nc5 $1 $18 {[%cal Rc5d7]} Bxc5 18. dxc5) 17... O-O $14 {[%emt 0:00:02]} 18. Bc1 {[%emt 0:01:21]} Qc7 {[%emt 0:00:19]} 19. g3 {[%emt 0:00:16]} Rfc8 {[%emt 0:00:01]} 20. Nc5 {[%emt 0:00:05]} e5 {[%emt 0:00:36] White leaves nothing to chance now.} (20... Rb6 $14) 21. Bg4 $16 {[%emt 0:00:24] White has more active pieces.} f5 {[%emt 0:00:17]} 22. Bf3 {[%emt 0:00:09]} e4 {[%emt 0:00:02]} 23. Be2 {[%emt 0:00:00]} h5 {[%emt 0:00:15]} (23... f4 $16 {was worth a try.}) 24. b4 {[%emt 0:00:04] Strongly threatening Qa4.} h4 {[%emt 0:00:49]} (24... Rb6 $142 25. Qb3 Qf7) 25. Qb3 {[%emt 0:00:58]} (25. gxh4 Rb6 $16) 25... Ne7 {[%emt 0:01:18]} 26. Bg5 {[%emt 0:00:06]} (26. gxh4 Rb6 $16) 26... hxg3 {[%emt 0:00:01]} 27. hxg3 {[%emt 0:00:35] aiming for Bxe7.} (27. fxg3 Bxg3 28. Kh1 (28. Bxe7 Bxh2+ 29. Kh1 Qxe7 $11) 28... Bxh2 $14) 27... Rd8 {[%emt 0:00:21]} (27... Rb6 $142 28. Bxe7 Qxe7 29. Qxd5+ Qf7 30. Qxf7+ Kxf7 31. Rxa7+ Rc7) 28. Qa2 $18 {[%emt 0:00:55]} Ra8 {[%emt 0:00:33]} 29. Qa5 {[%emt 0:00:05]} (29. Kg2 $142) 29... Qxa5 {[%emt 0:00:04]} 30. Rxa5 {[%emt 0:00:06]} Kf7 {[%emt 0:00:07]} 31. Rfa1 {[%emt 0:00:16]} Bxc5 {[%emt 0:00:18]} (31... Ne6 $142) 32. dxc5 {[%emt 0:00:30]} (32. bxc5 Ne6 $16) 32... Ne6 {[%emt 0:00:01]} 33. Be3 {[%emt 0:00:22]} ({Weaker is} 33. Rxa7 Rxa7 34. Rxa7 Nxg5 $17) 33... g5 $2 {[%emt 0:00:10]} (33... d4) 34. Rxa7 {[%emt 0:00:06]} Rxa7 {[%emt 0:00:00]} 35. Rxa7 {[%emt 0:00:01]} f4 {[%emt 0:00:00]} 36. Bd4 {[%emt 0:00:17]} ({Stronger than} 36. gxf4 gxf4 37. Bd4 Nxd4 38. cxd4 Rg8+ 39. Kf1 Rb8 $11) 36... Nxd4 {[%emt 0:00:02]} 37. cxd4 {[%emt 0:00:01][%mdl 4096] Endgame KRB-KRN} f3 {[%emt 0:00:01]} 38. Bf1 {[%emt 0:00:06]} Kf6 $2 {[%emt 0:00:03]} (38... Rh8 39. b5 Ke6 40. Ra6+ Kf5) 39. b5 {[%emt 0:00:14]} Nf5 {[%emt 0:00:02]} 40. c6 {[%emt 0:00:11] Hoping for b6.} Nxd4 {[%emt 0:00:04]} 41. c7 {[%emt 0:00:01]} Rh8 {[%emt 0:00:05]} 42. b6 {[%emt 0:00:08] Intending b7 and mate.} Ne2+ {[%emt 0:00:03]} 43. Bxe2 {[%emt 0:00:02] White mates.} fxe2 {[%emt 0:00:00]} 44. Ra1 {[%emt 0:00:00]} d4 {[%emt 0:00:01]} 45. b7 {[%emt 0:00:01]} d3 {[%emt 0:00:00]} 46. c8=Q {[%emt 0:00:01]} (46. b8=N {gets mated.} d2 47. f4 e1=Q+ 48. Kg2 Qe2+ 49. Kg1 Qe3+ 50. Kg2 Qf3+ 51. Kg1 Rh1#) 46... Rxc8 {[%emt 0:00:04]} 47. bxc8=Q {[%emt 0:00:01]} d2 {[%emt 0:00:00]} 48. Qc3+ {[%emt 0:00:01] Weighted Error Value: White=0.44/Black=0.65} 1-0

[Event "CCT Airthings Masters Play-In 2023"]
[Site "Online"]
[Date "2023.02.03"]
[Round "1"]
[White "Nakamura, Hikaru"]
[Black "EvgenyT"]
[Result "*"]
[ECO "A13"]
[WhiteElo "2768"]
[BlackElo "2564"]
[Annotator "TA"]
[PlyCount "30"]
[EventDate "2023.02.03"]
[EventType "swiss"]
[EventCountry "NET"]
[SourceTitle "playchess.com"]
[Source "ChessBase"]
[SourceQuality "1"]
[TimeControl "600+2"]

{[%evp 19,30,27,29,21,31,0,23,17,40,24,47,41,37]} 1. Nf3 {[%emt 0:00:04]} d5 {[%emt 0:00:04]} 2. d4 {[%emt 0:00:08]} Nf6 {[%emt 0:00:03]} 3. c4 {[%emt 0:00:01]} e6 {[%emt 0:00:02]} 4. e3 {[%emt 0:00:01]} c5 {[%emt 0:00:08]} 5. cxd5 {[%emt 0:00:13]} exd5 {[%emt 0:00:07]} 6. Bb5+ {[%emt 0:00:03]} Nc6 {[%emt 0:00:03]} 7. O-O {[%emt 0:00:05]} cxd4 {[%emt 0:00:11]} 8. Nxd4 {[%emt 0:00:08]} Bd7 {[%emt 0:00:08]} 9. b3 {[%emt 0:00:04]} Bd6 {[%emt 0:00:38]} 10. Bb2 {[%emt 0:00:07]} O-O {[%emt 0:00:02]} 11. Nd2 {[%emt 0:00:10] A13: English Opening: 1...e6.} Re8 {[%emt 0:00:16]} 12. N2f3 {[%emt 0:00:27]} Rc8 {[%emt 0:00:15]} 13. Be2 {[%emt 0:00:04] [#]} Bg4 $146 {[%emt 0:01:06]} ({Predecessor:} 13... Bb8 14. Rc1 Qe7 15. Nxc6 Bxc6 16. Qd4 Qe4 17. Qd2 Qe7 18. Rc2 Ne4 19. Qd4 f6 {1-0 Deac,B (2560)-Berry,N (2283) EU-chT (Men) 21st 2017 (1.2)}) 14. Rc1 {[%emt 0:01:32]} Ne4 {[%emt 0:00:39]} 15. h3 $1 {[%emt 0:00:13]} Bh5 {[%emt 0:00:24] White took control after the opening.   Weighted Error Value: White=0.06 (flawless) /Black=0.16 (very precise)} *

[Event "CCT Airthings Masters Play-In 2023"]
[Site "Online"]
[Date "2023.02.03"]
[Round "1"]
[White "Dominguez Perez, Leinier"]
[Black "Sanan_Sjugirov"]
[Result "*"]
[ECO "C79"]
[WhiteElo "2743"]
[BlackElo "2559"]
[Annotator "TA"]
[PlyCount "33"]
[EventDate "2023.02.03"]
[EventType "swiss"]
[EventCountry "NET"]
[SourceTitle "playchess.com"]
[Source "ChessBase"]
[SourceQuality "1"]
[TimeControl "600+2"]

{[%evp 15,33,31,39,40,29,33,33,19,37,35,41,35,43,47,43,46,55,36,44,44]} 1. e4 {[%emt 0:01:27]} e5 {[%emt 0:00:10]} 2. Nf3 {[%emt 0:00:01]} Nc6 {[%emt 0:00:01]} 3. Bb5 {[%emt 0:00:03]} a6 {[%emt 0:00:02]} 4. Ba4 {[%emt 0:00:01]} Nf6 {[%emt 0:00:02]} 5. O-O {[%emt 0:00:01]} d6 {[%emt 0:00:07]} 6. Re1 {[%emt 0:00:04]} Bd7 {[%emt 0:00:06]} 7. c3 {[%emt 0:00:03]} g6 {[%emt 0:00:02]} 8. d4 {[%emt 0:00:10]} Bg7 {[%emt 0:00:02]} 9. h3 {[%emt 0:00:03] C79: Ruy Lopez: Steinitz-type lines with 3...a6 4 Ba4 Nf6 5 0-0 d6.} O-O {[%emt 0:00:01]} 10. Bc2 {[%emt 0:00:02]} Re8 {[%emt 0:00:04] 10...Re8 is better than 10...Nh5.} 11. Nbd2 {[%emt 0:00:05]} a5 {[%emt 0:00:06] [#]} 12. d5 $1 $146 {[%emt 0:01:17][%mdl 8] White is slightly better. A relevant novelty.} ({Predecessor:} 12. Nf1 a4 13. Ng3 b5 14. Bg5 h6 15. Be3 Qe7 16. Qd2 Kh7 17. Rad1 Na5 18. b3 axb3 19. axb3 {1-0 Sethuraman,S (2642)-Gupta,A (2601) IND-ch 59th New Delhi 2022 (6)}) 12... Ne7 {[%emt 0:00:07]} 13. c4 {[%emt 0:00:01]} b6 {[%emt 0:00:11]} 14. Nb1 {[%emt 0:00:02]} Nh5 {[%emt 0:00:24]} 15. Nc3 {[%emt 0:00:02]} Nf4 {[%emt 0:00:38]} 16. Bxf4 {[%emt 0:00:35]} exf4 {[%emt 0:00:03]} 17. Qd2 {[%emt 0:00:00] Weighted Error Value: White=0.03 (flawless) /Black=0.06 (flawless)} *

[Event "CCT Airthings Masters Play-In 2023"]
[Site "Online"]
[Date "2023.02.03"]
[Round "1"]
[White "Andreikin, Dmitry"]
[Black "Vladimir_"]
[Result "1-0"]
[ECO "D30"]
[WhiteElo "2729"]
[BlackElo "2553"]
[Annotator "TA"]
[PlyCount "51"]
[EventDate "2023.02.03"]
[EventType "swiss"]
[EventCountry "NET"]
[SourceTitle "playchess.com"]
[Source "ChessBase"]
[SourceQuality "1"]
[TimeControl "600+2"]

{[%evp 9,51,28,29,24,35,28,33,20,29,28,29,20,32,37,28,25,33,39,53,41,45,1,118,121,163,143,135,148,141,142,142,114,143,139,137,102,193,151,984,1000,29995,29996,29996,29997]} 1. Nf3 {[%emt 0:00:03]} d5 {[%emt 0:00:05]} 2. d4 {[%emt 0:00:01]} Nf6 {[%emt 0:00:02]} 3. c4 {[%emt 0:00:03]} e6 {[%emt 0:00:02]} 4. Bg5 {[%emt 0:00:08]} a6 {[%emt 0:00:18]} 5. cxd5 {[%emt 0:00:16]} exd5 {[%emt 0:00:02]} 6. e3 {[%emt 0:00:07] D30: Queen's Gambit Declined: Systems without Nc3.} Be6 {[%emt 0:00:08]} 7. Nc3 {[%emt 0:00:33]} Nbd7 {[%emt 0:00:09]} 8. h3 {[%emt 0:00:13] White is slightly better.} Bd6 {[%emt 0:00:08]} 9. Bd3 {[%emt 0:00:01]} c6 {[%emt 0:00:10]} 10. O-O {[%emt 0:00:04]} O-O {[%emt 0:00:05]} 11. Nd2 $5 {[%emt 0:00:09][%mdl 4] A promising side line.} h6 {[%emt 0:00:17]} 12. Bh4 {[%emt 0:00:05] [#]} g5 $146 {[%emt 0:00:25]} ({Predecessor:} 12... c5 13. dxc5 Nxc5 14. Nf3 g5 15. Bg3 Bxg3 16. fxg3 Nh5 17. g4 Ng3 18. Rf2 Nxd3 19. Qxd3 {1-0 Hosseinzadeh,N (2215)-Bekiragaoglu,U (2147) TUR-chT 2nd League 2022 (9.12)}) 13. Bg3 {[%emt 0:00:03]} Bxg3 {[%emt 0:00:06]} 14. fxg3 {[%emt 0:00:00]} Kg7 {[%emt 0:00:32]} 15. g4 {[%emt 0:00:22]} Nb6 {[%emt 0:00:09]} (15... h5 $1 $11 {keeps the balance.}) 16. Rf2 $16 {[%emt 0:00:38] White is more active.} Nc4 {[%emt 0:00:20]} 17. Nxc4 {[%emt 0:00:32]} dxc4 {[%emt 0:00:03]} 18. Bc2 {[%emt 0:00:00]} Nd5 {[%emt 0:00:25]} 19. Qf3 {[%emt 0:00:04]} Nb4 {[%emt 0:00:30]} 20. Be4 {[%emt 0:00:37]} Nd3 {[%emt 0:00:20]} 21. Bxd3 {[%emt 0:00:04]} cxd3 {[%emt 0:00:03]} 22. Qe4 $40 {[%emt 0:00:07][%mdl 128] Black is in trouble.} Qd7 {[%emt 0:00:17]} (22... Bc4 $16) 23. Raf1 {[%emt 0:00:08] [#] aiming for Qe5+.} b5 $2 {[%emt 0:00:39] Black is weak on the dark squares} (23... f6 $16) 24. Qe5+ $18 {[%emt 0:00:14]} ({Weaker is} 24. Qxd3 Bc4 25. Qc2 (25. Qe4 Rae8 $17) 25... Bxf1 26. Rxf1 Rae8 $11) 24... Kg6 {[%emt 0:00:05]} 25. Rf6+ {[%emt 0:00:09]} Kh7 {[%emt 0:00:02] [#]} 26. Rxh6+ $3 {[%emt 0:00:03][%mdl 576] Decoy, Clearance. An entertaining game by Andreikin.   Weighted Error Value: White=0.12 (very precise) /Black=0.55} 1-0